fUSD/lending_fUSD_20260430
["ID","MTS","AMOUNT","RATE_DAILY","PERIOD"]
[421368896,1777510249000,-3378.25322856,0.00029434,2]
[421368919,1777510276000,995.19,0.00028012,120]
[421368921,1777510291000,500.0,0.00029998,120]
[421368920,1777510291000,500.0,0.0002906,120]
[421368922,1777510292000,500.0,0.00029999,120]
[421368923,1777510295000,2500.0,0.00027443,120]
[421368926,1777510645000,500.0,0.00029999,120]
[421368928,1777510645000,500.0,0.00029999,120]
[421368927,1777510645000,500.0,0.00029999,120]
[421368930,1777510837000,1000.0,0.00027013,120]
[421368933,1777511186000,500.0,0.00028775,120]
[421368932,1777511186000,500.0,0.00028775,120]
[421368931,1777511186000,500.0,0.00028774,120]
[421368936,1777511187000,541.49931133,0.00028851,120]
[421368935,1777511187000,500.0,0.00028775,120]
[421368934,1777511187000,500.0,0.00028775,120]
[421368937,1777511266000,500.0,0.00028775,120]
[421368939,1777511267000,500.0,0.00028775,120]
[421368938,1777511267000,500.0,0.00028775,120]
[421368941,1777511267000,500.0,0.00028775,120]
[421368940,1777511267000,500.0,0.00028775,120]
[421368948,1777511432000,-162.31979731,0.00018987,2]
[421368949,1777511432000,-160.0,0.00018989,2]
[421368950,1777511432000,-2500.0,0.00018998,2]
[421368952,1777511432000,-500.0,0.00019,2]
[421368951,1777511432000,-154.0,0.00019,2]
[421368953,1777511432000,-500.0,0.00019,2]
[421368955,1777511432000,-1200.0,0.00020895,2]
[421368965,1777511432000,-930.0,0.00022999,2]
[421368954,1777511432000,-154.0,0.0002,2]
[421368956,1777511432000,-2500.0,0.00020896,2]
[421368960,1777511432000,-256.0,0.00022998,2]
[421368958,1777511432000,-154.0,0.00022,2]
[421368964,1777511432000,-833.42,0.00022999,2]
[421368963,1777511432000,-1525.93,0.00022999,2]
[421368957,1777511432000,-154.0,0.00021,2]
[421368959,1777511432000,-1680.0,0.0002284,2]
[421368961,1777511432000,-436.0,0.00022998,2]
[421368966,1777511432000,-6143.74,0.00022999,2]
[421368969,1777511432000,-2060.33272966,0.00022999,2]
[421368967,1777511432000,-6088.18524253,0.00022999,2]
[421368968,1777511432000,-444.0,0.00022999,2]
[421368970,1777511432000,-6444.33781323,0.00022999,2]
[421368962,1777511432000,-299.99,0.00022999,7]
[421368977,1777511438000,-1165.45033526,0.00022999,2]
[421368983,1777511440000,-8797.68387932,0.00022999,2]
[421368984,1777511440000,-3743.77233852,0.00022999,2]
[421368986,1777511440000,-1902.4269139,0.00022999,2]
[421368985,1777511440000,-713.67957342,0.00022999,2]
[421368995,1777511445000,-24.78697586,0.00023,2]
[421369001,1777511445000,-393.03895891,0.00025649,2]
[421369002,1777511445000,-395.25347582,0.00025764,2]
[421369003,1777511445000,-150.99,0.00025774,2]
[421368999,1777511445000,-275.96778674,0.00024966,2]
[421369000,1777511445000,-166.66,0.00025573,30]
[421368998,1777511445000,-1615.03221326,0.00024966,2]
[421368997,1777511445000,-1165.00000001,0.00023,2]
[421368996,1777511445000,-136.21302414,0.00023,2]
[421368994,1777511445000,-829.52117416,0.00022999,2]
[421369040,1777511446000,-166.66,0.00027746,2]
[421369038,1777511446000,-166.66,0.00027727,30]
[421369035,1777511446000,-800.0,0.00027694,2]
[421369060,1777511446000,-3618.63915978,0.00028675,2]
[421369030,1777511446000,-1838.8604776,0.00027552,2]
[421369029,1777511446000,-130.2094319,0.00027552,2]
[421369033,1777511446000,-154.9,0.00027671,2]
[421369046,1777511446000,-800.0,0.0002837,2]
[421369056,1777511446000,-3249.74,0.00028665,10]
[421369047,1777511446000,-1368.33272966,0.00028478,2]
[421369042,1777511446000,-20000.0,0.00028,7]
[421369052,1777511446000,-487.12,0.00028642,7]
[421369031,1777511446000,-30.9300905,0.00027552,2]
[421369050,1777511446000,-487.12,0.0002863,2]
[421369054,1777511446000,-487.12,0.00028654,30]
[421369058,1777511446000,-487.12,0.00028666,2]
[421369044,1777511446000,-166.66,0.00028265,30]
[421369028,1777511446000,-5000.0,0.00027493,2]
[421369026,1777511446000,-150.0,0.00027372,2]
[421369021,1777511446000,-150.0,0.00026901,4]
[421369007,1777511446000,-422.52893402,0.00026559,2]
[421369004,1777511446000,-166.66,0.00026112,30]
[421369005,1777511446000,-200.0,0.00026362,2]
[421369006,1777511446000,-500.0,0.00026516,2]
[421369008,1777511446000,-1577.47106598,0.00026559,2]
[421369009,1777511446000,-1000.0,0.00026583,2]
[421369010,1777511446000,-200.0,0.00026604,2]
[421369027,1777511446000,-1500.0,0.00027397,2]
[421369011,1777511446000,-166.66,0.0002665,30]
[421369022,1777511446000,-255.04347443,0.00026901,4]
[421369023,1777511446000,-800.0,0.00027019,2]
[421369024,1777511446000,-506.0,0.00027137,2]
[421369025,1777511446000,-166.66,0.00027189,30]
[421369015,1777511446000,-150.0,0.00026901,7]
[421369020,1777511446000,-150.0,0.00026901,4]
[421369017,1777511446000,-155.17433016,0.00026901,4]
[421369013,1777511446000,-500.0,0.00026809,2]
[421369070,1777511446000,-487.12,0.00028703,2]
[421369128,1777511446000,-3278.06776337,0.00028773,2]
[421369074,1777511446000,-487.12,0.00028716,7]
[421369126,1777511446000,-1069.3867999,0.00028773,2]
[421369123,1777511446000,-2208.68096347,0.00028773,2]
[421369120,1777511446000,-3278.06776337,0.00028773,2]
[421369122,1777511446000,-3278.06776337,0.00028773,2]
[421369112,1777511446000,-503.77858788,0.00028773,2]
[421369107,1777511446000,-3278.06776337,0.00028773,2]
[421369110,1777511446000,-3278.06776337,0.00028773,2]
[421369113,1777511446000,-1840.25353362,0.00028773,2]
[421369116,1777511446000,-874.04884267,0.00028773,2]
[421369131,1777511446000,-2374.47767336,0.00028773,2]
[421369129,1777511446000,-3278.06776337,0.00028773,2]
[421369133,1777511446000,-903.59009001,0.00028773,2]
[421369135,1777511446000,-456.0,0.00028773,2]
[421369137,1777511446000,-659.30907396,0.00028773,2]
[421369136,1777511446000,-298.87288144,0.00028773,2]
[421369118,1777511446000,-563.76538708,0.00028773,2]
[421369072,1777511446000,-485.32,0.00028716,7]
[421369105,1777511446000,-162.07763252,0.00028773,2]
[421369102,1777511446000,-3278.06776337,0.00028773,2]
[421369062,1777511446000,-1119.13391903,0.00028675,2]
[421369064,1777511446000,-487.12,0.00028679,7]
[421369066,1777511446000,-487.12,0.00028691,30]
[421369068,1777511446000,-485.32,0.00028703,2]
[421369076,1777511446000,-485.32,0.00028728,30]
[421369080,1777511446000,-485.32,0.0002874,2]
[421369100,1777511446000,-500.0,0.00028773,2]
[421369083,1777511446000,-487.12,0.0002874,2]
[421369078,1777511446000,-487.12,0.00028728,30]
[421369089,1777511446000,-152.0,0.00028755,3]
[421369096,1777511446000,-487.12,0.00028765,30]
[421369094,1777511446000,-485.32,0.00028765,30]
[421369091,1777511446000,-2708.11,0.00028763,10]
[421369104,1777511446000,-230.05081431,0.00028773,2]
[421369085,1777511446000,-485.32,0.00028753,7]
[421369098,1777511446000,-1025.36860002,0.00028766,3]
[421369087,1777511446000,-487.12,0.00028753,7]
[421369134,1777511446000,-35.98033874,0.00028773,2]
[421369193,1777511684000,1000.0,0.00026629,120]
[421369194,1777511795000,803.84,0.00027256,120]
[421369195,1777511821000,388.73728581,0.00027814,120]
[421369196,1777512077000,171.20379472,0.00027814,120]
[421369197,1777512604000,166.0,0.00027849,120]
[421369198,1777512610000,186.544,0.00029999,120]
[421369217,1777512632000,-693.6130166,0.0002,30]
[421369219,1777512632000,-157.57914543,0.0002,2]
[421369218,1777512632000,-640.25214742,0.0002,30]
[421369216,1777512632000,-436.89396713,0.0002,30]
[421369220,1777512632000,-333.0,0.00020899,2]
[421369221,1777512632000,-4469.52891371,0.000209,30]
[421369214,1777512632000,-1902.9999357,0.0002,30]
[421369225,1777512633000,-720.22605909,0.00022,4]
[421369224,1777512633000,-643.82857995,0.00022,4]
[421369223,1777512633000,-356.44950306,0.00022,4]
[421369222,1777512633000,-1894.42033482,0.00022,4]
[421369226,1777512637000,687.669,0.00030137,120]
[421369253,1777512638000,-387.63,0.000264,2]
[421369232,1777512638000,-1980.58075856,0.00022,4]
[421369244,1777512638000,-31554.98478036,0.00022,4]
[421369243,1777512638000,-592.4712529,0.00022,4]
[421369246,1777512638000,-287.0,0.0002368,2]
[421369245,1777512638000,-194.95498369,0.00022,2]
[421369248,1777512638000,-2919.59589059,0.000238,2]
[421369250,1777512638000,-166.66,0.00025911,30]
[421369251,1777512638000,-237.51027688,0.00026008,2]
[421369247,1777512638000,-7096.00105364,0.000238,2]
[421369256,1777512638000,-4158.2834,0.0002645,2]
[421369254,1777512638000,-371.33,0.00026427,2]
[421369252,1777512638000,-155.06552148,0.0002635,2]
[421369255,1777512638000,-200.0,0.00026443,2]
[421369261,1777512638000,-1906.31029911,0.0002645,2]
[421369257,1777512638000,-303.33361075,0.0002645,2]
[421369258,1777512638000,-1058.9566945,0.0002645,2]
[421369259,1777512638000,-508.57257251,0.0002645,2]
[421369262,1777512638000,-800.71742749,0.0002645,2]
[421369260,1777512638000,-736.12857669,0.0002645,2]
[421369249,1777512638000,-500.0,0.00025781,2]
[421369264,1777512639000,-559.53366536,0.0002645,2]
[421369263,1777512639000,-6657.42045116,0.0002645,2]
[421369283,1777512640000,-2832.36642186,0.0002645,2]
[421369287,1777512641000,-372.19301132,0.0002645,2]
[421369285,1777512641000,-11254.23974103,0.0002645,2]
[421369286,1777512641000,-1109.5857,0.0002645,2]
[421369289,1777512641000,1000.0,0.00026588,120]
[421369288,1777512641000,-2414.10485394,0.0002645,2]
[421369320,1777512643000,-1751.70942853,0.0002189,2]
[421369319,1777512643000,-717.72,0.0002189,2]
[421369318,1777512643000,-470.0,0.0002189,2]
[421369324,1777512645000,-1730.39852329,0.0002189,2]
[421369325,1777512645000,-266.43034737,0.0002189,2]
[421369323,1777512645000,-459.58986104,0.0002189,2]
[421369322,1777512645000,-649.6768,0.0002189,2]
[421369321,1777512645000,-2293.72232384,0.0002189,2]
[421369338,1777512646000,-515.32199994,0.0002655,2]
[421369340,1777512646000,-469.78000001,0.0002655,2]
[421369327,1777512646000,-1150.50073293,0.0002189,2]
[421369335,1777512646000,-455.96509216,0.0002655,2]
[421369333,1777512646000,-140882.92826931,0.0002655,2]
[421369331,1777512646000,-166.66,0.00026457,30]
[421369329,1777512646000,-7364.23977428,0.0002645,2]
[421369369,1777512725000,502.08915536,0.00029079,120]
[421369370,1777512917000,153.0,0.00030137,120]
[421369371,1777512947000,421.33917017,0.00030136,120]
[421369372,1777512994000,956.92,0.00027418,120]
[421369374,1777513069000,516.84870387,0.00027799,120]
[421369375,1777513621000,491.20600374,0.00027093,120]
[421369376,1777513638000,1000.0,0.00025863,120]
[421369377,1777513813000,834.46,0.00025614,120]
[421369378,1777513814000,834.46,0.00028815,120]
[421369384,1777513831000,-271.5566617,0.0002463,2]
[421369383,1777513831000,-165.0,0.00022,2]
[421369382,1777513831000,-153.0,0.00021,2]
[421369385,1777513831000,-166.66,0.00024658,30]
[421369381,1777513831000,-153.0,0.0002,2]
[421369386,1777513831000,-166.66,0.00025177,30]
[421369388,1777513831000,-1200.0,0.00025491,2]
[421369387,1777513831000,-804.27463089,0.00025392,2]
[421369389,1777513831000,-2131.34163674,0.00025492,2]
[421369390,1777513831000,-931.70372915,0.00025492,2]
[421369391,1777513831000,-587.80867706,0.00025492,2]
[421369392,1777513831000,-3701.3,0.00025492,2]
[421369393,1777513831000,-10534.31893508,0.00025492,2]
[421369412,1777513838000,-150.99,0.00025663,2]
[421369435,1777513838000,-152.0,0.00026353,7]
[421369427,1777513838000,-321.6254081,0.00026076,2]
[421369434,1777513838000,-2563.3837,0.0002635,2]
[421369423,1777513838000,-434.34,0.00025967,2]
[421369408,1777513838000,-2000.0,0.00025663,2]
[421369432,1777513838000,-166.66,0.00026215,30]
[421369421,1777513838000,-469.62,0.00025861,7]
[421369433,1777513838000,-320.0,0.00026349,2]
[421369439,1777513838000,-14170.70044164,0.00026435,2]
[421369413,1777513838000,-5039.15,0.00025696,2]
[421369436,1777513838000,-747.97,0.000264,2]
[421369410,1777513838000,-299.99,0.00025663,7]
[421369418,1777513838000,-5000.0,0.00025858,2]
[421369416,1777513838000,-200.0,0.00025776,2]
[421369404,1777513838000,-26664.9680241,0.00025492,2]
[421369415,1777513838000,-320.0,0.00025706,2]
[421369407,1777513838000,-544.4914146,0.00025492,2]
[421369405,1777513838000,-7272.5970801,0.00025492,2]
[421369406,1777513838000,-572.4068042,0.00025492,2]
[421369403,1777513838000,-1101.241628,0.00025492,2]
[421369402,1777513838000,-5320.80538467,0.00025492,2]
[421369414,1777513838000,-166.66,0.00025696,30]
[421369429,1777513838000,-200.0,0.0002611,2]
[421369474,1777513838000,-500.32753748,0.00027573,5]
[421369443,1777513838000,-234.95276292,0.0002655,3]
[421369425,1777513838000,-1000.0,0.00026031,2]
[421369478,1777513838000,-19434.19409884,0.00027585,4]
[421369472,1777513838000,-1558.0,0.00027397,15]
[421369468,1777513838000,-3118.0,0.00027123,2]
[421369470,1777513838000,-166.66,0.00027253,30]
[421369469,1777513838000,-509.0,0.00027137,2]
[421369464,1777513838000,-153.12760362,0.00027,4]
[421369477,1777513838000,-3024.11113083,0.00027583,2]
[421369466,1777513838000,-162.06537281,0.00027,4]
[421369476,1777513838000,-3024.11113083,0.00027583,2]
[421369475,1777513838000,-3024.11113083,0.00027583,2]
[421369471,1777513838000,-1500.0,0.00027397,2]
[421369462,1777513838000,-152.44233829,0.00027,4]
[421369473,1777513838000,-4009.44487233,0.00027484,2]
[421369445,1777513838000,-152.0,0.00026593,7]
[421369449,1777513838000,-152.0,0.0002662,7]
[421369454,1777513838000,-162.31979731,0.00026628,2]
[421369441,1777513838000,-1001.26897456,0.00026549,2]
[421369452,1777513838000,-152.0,0.00026628,30]
[421369460,1777513838000,-320.0,0.00026992,2]
[421369458,1777513838000,-166.66,0.00026734,30]
[421369456,1777513838000,-150.0,0.00026679,2]
[421369447,1777513838000,-152.0,0.00026601,30]
[421369481,1777513839000,-733.3777153,0.00027575,10]
[421369506,1777513840000,-459.37,0.0002863,2]
[421369502,1777513840000,-1054.0,0.00028341,5]
[421369503,1777513840000,-1558.0,0.00028493,15]
[421369509,1777513840000,-423.11,0.00028654,30]
[421369511,1777513840000,-423.11,0.00028666,2]
[421369508,1777513840000,-459.37,0.00028642,7]
[421369505,1777513840000,-423.11,0.0002863,2]
[421369514,1777513840000,-459.37,0.00028679,7]
[421369513,1777513840000,-423.11,0.00028679,7]
[421369523,1777513840000,-423.11,0.0002874,2]
[421369512,1777513840000,-459.37,0.00028666,2]
[421369510,1777513840000,-459.37,0.00028654,30]
[421369515,1777513840000,-423.11,0.00028691,30]
[421369519,1777513840000,-423.11,0.00028716,7]
[421369522,1777513840000,-459.37,0.00028728,30]
[421369520,1777513840000,-459.37,0.00028716,7]
[421369507,1777513840000,-423.11,0.00028642,7]
[421369504,1777513840000,-948.0,0.00028536,5]
[421369493,1777513840000,-268.69,0.00027894,7]
[421369496,1777513840000,-1558.0,0.00027945,15]
[421369521,1777513840000,-423.11,0.00028728,30]
[421369482,1777513840000,-1546.4422847,0.00027575,10]
[421369483,1777513840000,-6887.85041719,0.00027585,4]
[421369484,1777513840000,-918615.989,0.00027585,2]
[421369485,1777513840000,-3883.92,0.000276,7]
[421369487,1777513840000,-320.0,0.00027634,2]
[421369488,1777513840000,-2000.0,0.00027699,2]
[421369486,1777513840000,-9183.5,0.000276,7]
[421369490,1777513840000,-1083.03283936,0.000277,2]
[421369492,1777513840000,-1700.0,0.000278,10]
[421369498,1777513840000,-984.0,0.00028,2]
[421369499,1777513840000,-909.0,0.00028,2]
[421369491,1777513840000,-233.00897023,0.00027746,2]
[421369500,1777513840000,-1062.0,0.00028,2]
[421369497,1777513840000,-960.1974675,0.00027958,2]
[421369494,1777513840000,-259.16833716,0.00027899,2]
[421369495,1777513840000,-3400.0,0.000279,10]
[421369501,1777513840000,-320.0,0.00028277,2]
[421369489,1777513840000,-3292.41258877,0.000277,2]
[421369516,1777513840000,-459.37,0.00028691,30]
[421369517,1777513840000,-423.11,0.00028703,2]
[421369539,1777513840000,-423.11,0.00028839,30]
[421369546,1777513840000,-423.11,0.00028912,30]
[421369545,1777513840000,-423.11,0.000289,7]
[421369548,1777513840000,-423.11,0.00028937,7]
[421369555,1777513840000,-4376.0,0.00029,2]
[421369556,1777513840000,-4009.44487228,0.0002901,2]
[421369557,1777513840000,-423.11,0.00029011,7]
[421369549,1777513840000,-423.11,0.00028949,30]
[421369558,1777513840000,-500.0,0.00029015,5]
[421369550,1777513840000,-423.11,0.00028962,2]
[421369553,1777513840000,-423.11,0.00028986,30]
[421369554,1777513840000,-423.11,0.00028999,2]
[421369552,1777513840000,-704.0,0.00028978,10]
[421369560,1777513840000,-423.11,0.00029036,2]
[421369561,1777513840000,-1558.0,0.00029041,15]
[421369559,1777513840000,-423.11,0.00029023,30]
[421369518,1777513840000,-459.37,0.00028703,2]
[421369541,1777513840000,-423.11,0.00028863,7]
[421369542,1777513840000,-2000.0,0.00028871,2]
[421369551,1777513840000,-423.11,0.00028974,7]
[421369544,1777513840000,-423.11,0.00028888,2]
[421369543,1777513840000,-423.11,0.00028876,30]
[421369525,1777513840000,-423.11,0.00028753,7]
[421369524,1777513840000,-459.37,0.0002874,2]
[421369535,1777513840000,-423.11,0.00028802,30]
[421369528,1777513840000,-459.37,0.00028765,30]
[421369527,1777513840000,-423.11,0.00028765,30]
[421369530,1777513840000,-423.11,0.00028777,2]
[421369531,1777513840000,-459.37,0.00028777,2]
[421369533,1777513840000,-459.37,0.00028789,7]
[421369529,1777513840000,-155.0,0.00028774,2]
[421369532,1777513840000,-423.11,0.00028789,7]
[421369526,1777513840000,-459.37,0.00028753,7]
[421369537,1777513840000,-423.11,0.00028814,2]
[421369547,1777513840000,-423.11,0.00028925,2]
[421369536,1777513840000,-459.37,0.00028802,30]
[421369538,1777513840000,-423.11,0.00028826,7]
[421369534,1777513840000,-162.31979731,0.000288,7]
[421369540,1777513840000,-423.11,0.00028851,2]
[421369599,1777513841000,-264.0,0.00029638,10]
[421369600,1777513841000,-200.0,0.00029759,2]
[421369596,1777513841000,-699.59207493,0.00029608,5]
[421369602,1777513841000,-10000.0,0.000299,15]
[421369606,1777513841000,-500.0,0.00029973,5]
[421369589,1777513841000,-150.0,0.00029534,2]
[421369597,1777513841000,-1000.0,0.00029608,5]
[421369595,1777513841000,-1000.0,0.00029608,5]
[421369587,1777513841000,-3883.92,0.000293,7]
[421369598,1777513841000,-1702.0,0.00029638,10]
[421369590,1777513841000,-1000.0,0.00029563,5]
[421369605,1777513841000,-177.0,0.00029945,2]
[421369601,1777513841000,-1524.17240561,0.00029888,20]
[421369611,1777513841000,-295402.3738488,0.0003,20]
[421369603,1777513841000,-5200.0,0.000299,10]
[421369608,1777513841000,-500.0,0.00029973,5]
[421369615,1777513841000,-1500.0,0.00030111,5]
[421369614,1777513841000,-1083.0328393,0.000301,2]
[421369609,1777513841000,-500.0,0.00029973,5]
[421369610,1777513841000,-200.88198543,0.0002999,2]
[421369616,1777513841000,-150.0,0.00030136,2]
[421369617,1777513841000,-150.0,0.00030136,2]
[421369618,1777513841000,-224.07035947,0.00030136,2]
[421369613,1777513841000,-7560.4051232,0.0003,2]
[421369612,1777513841000,-10000.0,0.0003,2]
[421369586,1777513841000,-423.36,0.00029232,7]
[421369604,1777513841000,-513.27513823,0.00029916,2]
[421369594,1777513841000,-1000.78952641,0.00029598,5]
[421369564,1777513841000,-480.89105603,0.0002905,5]
[421369593,1777513841000,-1000.0,0.00029598,5]
[421369567,1777513841000,-500.0,0.0002906,5]
[421369569,1777513841000,-500.0,0.0002906,5]
[421369566,1777513841000,-500.0,0.0002905,5]
[421369568,1777513841000,-500.0,0.0002906,5]
[421369563,1777513841000,-500.0,0.0002905,5]
[421369562,1777513841000,-423.11,0.00029048,7]
[421369570,1777513841000,-423.11,0.0002906,30]
[421369565,1777513841000,-500.0,0.0002905,5]
[421369619,1777513841000,-1558.0,0.00030137,15]
[421369571,1777513841000,-423.11,0.00029072,2]
[421369573,1777513841000,-423.11,0.00029097,30]
[421369576,1777513841000,-202.11760049,0.0002913,7]
[421369588,1777513841000,-1147.0,0.00029372,5]
[421369575,1777513841000,-423.11,0.00029122,7]
[421369577,1777513841000,-423.11,0.00029134,30]
[421369578,1777513841000,-423.11,0.00029146,2]
[421369579,1777513841000,-423.11,0.00029159,7]
[421369581,1777513841000,-423.11,0.00029183,2]
[421369580,1777513841000,-423.11,0.00029171,30]
[421369582,1777513841000,-423.11,0.00029195,7]
[421369572,1777513841000,-423.11,0.00029085,7]
[421369583,1777513841000,-9183.5,0.000292,7]
[421369584,1777513841000,-423.11,0.00029208,30]
[421369591,1777513841000,-1558.0,0.00029589,15]
[421369592,1777513841000,-1001.2723465,0.00029598,5]
[421369585,1777513841000,-423.11,0.0002922,2]
[421369574,1777513841000,-423.11,0.00029109,2]
[421369621,1777513841000,-273.0382209,0.00030137,2]
[421369607,1777513841000,-500.0,0.00029973,5]
[421369631,1777513841000,-1268.638,0.00030194,2]
[421369654,1777513841000,-956.92,0.00030846,120]
[421369653,1777513841000,-629.58639096,0.00030775,7]
[421369656,1777513841000,-500.0,0.00030855,50]
[421369657,1777513841000,-500.0,0.00030855,50]
[421369666,1777513841000,-155.0,0.00031114,30]
[421369658,1777513841000,-3883.92,0.000309,7]
[421369662,1777513841000,-150.0,0.00031011,2]
[421369663,1777513841000,-1500.0,0.00031068,5]
[421369660,1777513841000,-517.0,0.00031,120]
[421369664,1777513841000,-1500.0,0.00031068,5]
[421369659,1777513841000,-629.58639096,0.00030934,7]
[421369661,1777513841000,-4848.54058527,0.00031,30]
[421369670,1777513841000,-2500.0,0.00031207,5]
[421369671,1777513841000,-1558.0,0.00031233,15]
[421369667,1777513841000,-154.26259331,0.00031114,30]
[421369669,1777513841000,-153.0,0.00031114,30]
[421369678,1777513841000,-509.0,0.00031542,6]
[421369674,1777513841000,-2500.0,0.00031252,5]
[421369672,1777513841000,-2500.0,0.00031242,5]
[421369673,1777513841000,-2500.0,0.00031252,5]
[421369676,1777513841000,-629.58639096,0.00031412,7]
[421369677,1777513841000,-52500.0,0.000315,7]
[421369675,1777513841000,-629.58639096,0.00031253,7]
[421369679,1777513841000,-629.58639096,0.00031572,14]
[421369668,1777513841000,-155.82859679,0.00031114,30]
[421369620,1777513841000,-200.0,0.00030137,40]
[421369680,1777513841000,-2000.0,0.00031616,5]
[421369649,1777513841000,-2000.0,0.00030694,5]
[421369655,1777513841000,-500.0,0.00030855,50]
[421369665,1777513841000,-629.58639096,0.00031094,7]
[421369651,1777513841000,-2000.0,0.00030704,5]
[421369630,1777513841000,-1049.0,0.00030194,2]
[421369650,1777513841000,-9183.5,0.000307,7]
[421369627,1777513841000,-1500.0,0.00030156,5]
[421369623,1777513841000,-166.115,0.00030137,25]
[421369624,1777513841000,-1976.523,0.00030137,25]
[421369626,1777513841000,-1500.0,0.00030156,5]
[421369625,1777513841000,-1500.0,0.00030146,5]
[421369629,1777513841000,-1352.207,0.00030194,2]
[421369628,1777513841000,-3540.866,0.00030194,2]
[421369633,1777513841000,-150.119,0.00030194,2]
[421369638,1777513841000,-173.19,0.00030411,120]
[421369641,1777513841000,-1000.65275667,0.00030521,5]
[421369643,1777513841000,-1001.25194693,0.00030521,5]
[421369642,1777513841000,-1000.0,0.00030521,5]
[421369622,1777513841000,-629.58639096,0.00030137,2]
[421369632,1777513841000,-1220.892,0.00030194,2]
[421369640,1777513841000,-352.05167071,0.00030491,6]
[421369652,1777513841000,-2000.0,0.00030704,5]
[421369648,1777513841000,-1558.0,0.00030685,15]
[421369647,1777513841000,-2000.0,0.00030659,5]
[421369646,1777513841000,-629.58639096,0.00030615,7]
[421369644,1777513841000,-1000.0,0.00030521,5]
[421369645,1777513841000,-4009.44487228,0.00030536,2]
[421369636,1777513841000,-350.0,0.00030271,5]
[421369634,1777513841000,-6037.0,0.00030194,2]
[421369639,1777513841000,-629.58639096,0.00030456,2]
[421369637,1777513841000,-629.58639096,0.00030296,2]
[421369635,1777513841000,-654.122,0.00030194,2]
[421369722,1777513842000,-1083.0328393,0.000325,2]
[421369721,1777513842000,-350.0,0.00032492,6]
[421369714,1777513842000,-1558.0,0.00032329,15]
[421369712,1777513842000,-727.0,0.00032307,2]
[421369724,1777513842000,-150.0,0.00032562,2]
[421369718,1777513842000,-629.58639096,0.00032369,14]
[421369725,1777513842000,-152.0,0.00032564,4]
[421369715,1777513842000,-1646.40413603,0.00032338,5]
[421369717,1777513842000,-3500.0,0.00032348,5]
[421369716,1777513842000,-3500.0,0.00032348,5]
[421369713,1777513842000,-166.66,0.00032326,2]
[421369729,1777513842000,-178.4423824,0.00032564,5]
[421369719,1777513842000,-273.0382209,0.00032449,14]
[421369731,1777513842000,-629.58639096,0.00032688,30]
[421369740,1777513842000,-155.0,0.00033114,30]
[421369742,1777513842000,-629.58639096,0.00033166,30]
[421369732,1777513842000,-3000.0,0.00032712,5]
[421369733,1777513842000,-629.58639096,0.00032847,30]
[421369730,1777513842000,-3883.92,0.000326,7]
[421369741,1777513842000,-153.0,0.00033114,30]
[421369734,1777513842000,-500.0,0.00032876,120]
[421369738,1777513842000,-2726.94777586,0.00032896,5]
[421369739,1777513842000,-629.58639096,0.00033007,30]
[421369737,1777513842000,-4000.0,0.00032896,5]
[421369736,1777513842000,-1558.0,0.00032877,30]
[421369711,1777513842000,-833.38414455,0.00032307,2]
[421369723,1777513842000,-629.58639096,0.00032528,30]
[421369710,1777513842000,-9183.5,0.000323,7]
[421369681,1777513842000,-2000.0,0.00031616,5]
[421369705,1777513842000,-153.0,0.00032114,30]
[421369744,1777513842000,-1350.0,0.00033194,2]